fUST/lending_fUST_20240503
["ID","MTS","AMOUNT","RATE_DAILY","PERIOD"]
[325337956,1714743044046,-732.08,0.00027671,2]
[325337958,1714743044057,-500.0,0.00027671,2]
[325337960,1714743044069,-500.0,0.00027671,2]
[325337962,1714743044083,-500.0,0.00027671,2]
[325337964,1714743044096,-500.0,0.00027671,2]
[325337966,1714743044108,-908.01,0.00027671,2]
[325337968,1714743044119,-500.0,0.00027671,2]
[325337970,1714743044130,-500.0,0.00027671,2]
[325337972,1714743044141,-902.25,0.00027671,2]
[325337974,1714743044153,-500.0,0.00027671,2]
[325337976,1714743044164,-500.0,0.00027671,2]
[325337978,1714743044189,-500.0,0.00027671,2]
[325337980,1714743044201,-500.0,0.00027671,2]
[325337982,1714743044219,-500.0,0.00027671,2]
[325337984,1714743044232,-500.0,0.00027671,2]
[325337986,1714743044245,-2630.48,0.00027671,2]
[325337988,1714743044257,-500.0,0.00027671,2]
[325337990,1714743044275,-1229.46,0.00027671,2]
[325337992,1714743044295,-255.5055832,0.00027671,2]
[325337994,1714743044313,-500.0,0.00027671,2]
[325337996,1714743044328,-500.0,0.00027671,2]
[325337998,1714743044343,-661.17,0.00027671,2]
[325338000,1714743044360,-500.0,0.00027671,2]
[325338002,1714743044372,-500.0,0.00027671,2]
[325338004,1714743044383,-500.0,0.00027671,2]
[325338006,1714743044401,-500.0,0.00027671,2]
[325338008,1714743044413,-500.0,0.00027671,2]
[325338010,1714743044435,-500.0,0.00027671,2]
[325338012,1714743044446,-500.0,0.00027671,2]
[325338015,1714743044456,-500.0,0.00027671,2]
[325338017,1714743044468,-500.0,0.00027671,2]
[325338018,1714743044478,-1792.28,0.00027671,2]
[325338020,1714743044488,-500.0,0.00027671,2]
[325338022,1714743044500,-500.0,0.00027671,2]
[325338025,1714743044512,-500.0,0.00027671,2]
[325338027,1714743044523,-502.61364795,0.00027671,2]
[325338029,1714743044542,-500.0,0.00027671,2]
[325338031,1714743044556,-500.0,0.00027671,2]
[325338033,1714743044567,-512.72536146,0.00027671,2]
[325338035,1714743044578,-431.46148981,0.00027671,2]
[325338037,1714743044589,-2173.49,0.00027671,2]
[325338039,1714743044600,-533.62,0.00027671,2]
[325338041,1714743044612,-500.0,0.00027671,2]
[325338043,1714743044623,-500.0,0.00027671,2]
[325338045,1714743044634,-500.0,0.00027671,2]
[325338047,1714743044644,-500.0,0.00027671,2]
[325338049,1714743044656,-500.0,0.00027671,2]
[325338051,1714743044668,-500.0,0.00027671,2]
[325338053,1714743044678,-500.0,0.00027671,2]
[325338055,1714743044688,-500.0,0.00027671,2]
[325338057,1714743044700,-500.0,0.00027671,2]
[325338059,1714743044711,-500.0,0.00027671,2]
[325338061,1714743044722,-500.0,0.00027671,2]
[325338063,1714743044732,-500.0,0.00027671,2]
[325338065,1714743044743,-520.29350971,0.00027671,2]
[325338067,1714743044755,-500.0,0.00027671,2]
[325338069,1714743044765,-500.0,0.00027671,2]
[325338071,1714743044776,-702.88,0.00027671,2]
[325338073,1714743044787,-500.0,0.00027671,2]
[325338075,1714743044798,-500.0,0.00027671,2]
[325338077,1714743044811,-554.91796089,0.00027671,2]
[325338079,1714743044823,-500.0,0.00027671,2]
[325338081,1714743044834,-500.0,0.00027671,2]
[325338083,1714743044846,-500.0,0.00027671,2]
[325338085,1714743044858,-500.0,0.00027671,2]
[325338087,1714743044870,-500.0,0.00027671,2]
[325338088,1714743044881,-184.57958053,0.00027671,2]
[325338090,1714743044892,-1025.87,0.00027671,2]
[325338092,1714743044903,-348.45661594,0.00027671,2]
[325338094,1714743044915,-901.91,0.00027671,2]
[325338096,1714743044941,-500.0,0.00027671,2]
[325338098,1714743044955,-857.13,0.00027671,2]
[325338100,1714743044967,-1572.1,0.00027671,2]
[325338102,1714743044979,-955.71,0.00027671,2]
[325338104,1714743044990,-523.18,0.00027671,2]
[325338106,1714743045001,-1202.24,0.00027671,2]
[325338108,1714743045012,-500.0,0.00027671,2]
[325338110,1714743045024,-500.0,0.00027671,2]
[325338112,1714743045036,-500.0,0.00027671,2]
[325338114,1714743045046,-500.0,0.00027671,2]
[325338116,1714743045058,-500.0,0.00027671,2]
[325338118,1714743045069,-500.0,0.00027671,2]
[325338120,1714743045080,-500.0,0.00027671,2]
[325338122,1714743045091,-500.0,0.00027671,2]
[325338124,1714743045102,-500.0,0.00027671,2]
[325338126,1714743045112,-3525.0,0.00027671,2]
[325338128,1714743045124,-500.0,0.00027671,2]
[325338130,1714743045135,-500.0,0.00027671,2]
[325338132,1714743045146,-546.08,0.00027671,2]
[325338134,1714743045157,-500.0,0.00027671,2]
[325338136,1714743045169,-500.0,0.00027671,2]
[325338138,1714743045180,-1456.26,0.00027671,2]
[325338140,1714743045190,-500.0,0.00027671,2]
[325338142,1714743045200,-500.0,0.00027671,2]
[325338144,1714743045216,-151.0,0.00027671,2]
[325338146,1714743045227,-497.75148852,0.00027671,2]
[325338147,1714743045236,-500.0,0.00027671,2]
[325338149,1714743045247,-300.0,0.00027671,2]
[325338151,1714743045261,-500.0,0.00027671,2]
[325338153,1714743045272,-530.18051415,0.00027671,2]
[325338156,1714743045283,-500.0,0.00027671,2]
[325338158,1714743045295,-58291.06,0.00027671,2]
[325338159,1714743045307,-500.0,0.00027671,2]
[325338161,1714743045319,-500.0,0.00027671,2]
[325338163,1714743045330,-500.0,0.00027671,2]
[325338165,1714743045341,-500.0,0.00027671,2]
[325338167,1714743045352,-4755.16,0.00027671,2]
[325338176,1714743045463,-500.0,0.00027671,2]
[325338177,1714743045475,-500.0,0.00027671,2]
[325338178,1714743045486,-500.0,0.00027671,2]
[325338179,1714743045498,-500.0,0.00027671,2]
[325338180,1714743045509,-659.42,0.00027671,2]
[325338181,1714743045519,-500.75616022,0.00027671,2]
[325338182,1714743045533,-4081.0,0.00027671,2]
[325338183,1714743045544,-500.0,0.00027671,2]
[325338184,1714743045554,-500.0,0.00027671,2]
[325338185,1714743045565,-500.0,0.00027671,2]
[325338186,1714743045575,-500.0,0.00027671,2]
[325338187,1714743045585,-500.0,0.00027671,2]
[325338188,1714743045596,-500.0,0.00027671,2]
[325338189,1714743045606,-500.0,0.00027671,2]
[325338190,1714743045616,-596.21,0.00027671,2]
[325338191,1714743045626,-501.06480171,0.00027671,2]
[325338192,1714743045636,-500.0,0.00027671,2]
[325338193,1714743045646,-500.0,0.00027671,2]
[325338194,1714743045656,-500.0,0.00027671,2]
[325338195,1714743045666,-528.9393264,0.00027671,2]
[325338196,1714743045688,-500.0,0.00027671,2]
[325338197,1714743045698,-500.0,0.00027671,2]
[325338198,1714743045709,-500.0,0.00027671,2]
[325338200,1714743045719,-500.0,0.00027671,2]
[325338202,1714743045728,-613.68,0.00027671,2]
[325338204,1714743045739,-500.0,0.00027671,2]
[325338206,1714743045748,-500.0,0.00027671,2]
[325338208,1714743045758,-500.0,0.00027671,2]
[325338210,1714743045768,-500.0,0.00027671,2]
[325338212,1714743045778,-500.0,0.00027671,2]
[325338214,1714743045788,-577.00608173,0.00027671,2]
[325338216,1714743045798,-579.03,0.00027671,2]
[325338218,1714743045808,-500.0,0.00027671,2]
[325338220,1714743045818,-500.0,0.00027671,2]
[325338221,1714743045827,-500.0,0.00027671,2]
[325338223,1714743045837,-500.0,0.00027671,2]
[325338224,1714743045847,-500.0,0.00027671,2]
[325338225,1714743045856,-2638.26,0.00027671,2]
[325338226,1714743045866,-500.0,0.00027671,2]
[325338227,1714743045875,-500.0,0.00027671,2]
[325338228,1714743045885,-500.0,0.00027671,2]
[325338230,1714743045894,-509.5011345,0.00027671,2]
[325338232,1714743045904,-500.0,0.00027671,2]
[325338234,1714743045913,-500.0,0.00027671,2]
[325338236,1714743045928,-500.0,0.00027671,2]
[325338238,1714743045939,-500.0,0.00027671,2]
[325338239,1714743045949,-500.0,0.00027671,2]
[325338241,1714743045959,-500.0,0.00027671,2]
[325338243,1714743045970,-500.0,0.00027671,2]
[325338245,1714743045980,-500.0,0.00027671,2]
[325338247,1714743045991,-500.0,0.00027671,2]
[325338249,1714743046002,-500.0,0.00027671,2]
[325338251,1714743046014,-500.0,0.00027671,2]
[325338253,1714743046025,-500.0,0.00027671,2]
[325338255,1714743046037,-3899.44,0.00027671,2]
[325338257,1714743046050,-500.0,0.00027671,2]
[325338259,1714743046062,-1719.73,0.00027671,2]
[325338261,1714743046074,-500.0,0.00027671,2]
[325338264,1714743046086,-500.0,0.00027671,2]
[325338266,1714743046097,-500.0,0.00027671,2]
[325338269,1714743046108,-509.39926745,0.00027671,2]
[325338273,1714743046120,-535.49,0.00027671,2]
[325338275,1714743046131,-500.0,0.00027671,2]
[325338278,1714743046142,-500.0,0.00027671,2]
[325338281,1714743046154,-500.0,0.00027671,2]
[325338283,1714743046165,-2097.11,0.00027671,2]
[325338286,1714743046184,-500.0,0.00027671,2]
[325338287,1714743046196,-1236.42,0.00027671,2]
[325338288,1714743046209,-2053.21,0.00027671,2]
[325338289,1714743046225,-939.24,0.00027671,2]
[325338290,1714743046236,-1529.22,0.00027671,2]
[325338292,1714743046247,-749.95,0.00027671,2]
[325338293,1714743046260,-12591.64,0.00027671,2]
[325338294,1714743046271,-500.0,0.00027671,2]
[325338295,1714743046282,-500.0,0.00027671,2]
[325338296,1714743046293,-500.0,0.00027671,2]
[325338297,1714743046304,-500.0,0.00027671,2]
[325338298,1714743046314,-500.0,0.00027671,2]
[325338299,1714743046325,-500.0,0.00027671,2]
[325338300,1714743046335,-617.92,0.00027671,2]
[325338301,1714743046347,-500.0,0.00027671,2]
[325338302,1714743046357,-500.0,0.00027671,2]
[325338303,1714743046368,-500.0,0.00027671,2]
[325338304,1714743046380,-500.0,0.00027671,2]
[325338305,1714743046391,-500.0,0.00027671,2]
[325338306,1714743046402,-2133.57,0.00027671,2]
[325338307,1714743046415,-500.0,0.00027671,2]
[325338308,1714743046435,-500.0,0.00027671,2]
[325338309,1714743046446,-504.26763179,0.00027671,2]
[325338310,1714743046459,-500.0,0.00027671,2]
[325338311,1714743046470,-1878.73,0.00027671,2]
[325338312,1714743046481,-500.0,0.00027671,2]
[325338313,1714743046491,-500.0,0.00027671,2]
[325338314,1714743046504,-14272.92,0.00027671,2]
[325338315,1714743046514,-631.52,0.00027671,2]
[325338316,1714743046526,-500.0,0.00027671,2]
[325338317,1714743046536,-500.0,0.00027671,2]
[325338318,1714743046546,-1066.16,0.00027671,2]
[325338319,1714743046556,-500.0,0.00027671,2]
[325338320,1714743046566,-500.0,0.00027671,2]
[325338321,1714743046576,-464.40374443,0.00027671,2]
[325338322,1714743046586,-500.0,0.00027671,2]
[325338323,1714743046595,-500.0,0.00027671,2]
[325338324,1714743046605,-500.0,0.00027671,2]
[325338325,1714743046614,-1325.47,0.00027671,2]
[325338326,1714743046623,-455.05260052,0.00027671,2]
[325338327,1714743046633,-500.0,0.00027671,2]
[325338328,1714743046642,-500.0,0.00027671,2]
[325338329,1714743046651,-501.84974421,0.00027671,2]
[325338330,1714743046661,-500.0,0.00027671,2]
[325338331,1714743046672,-500.0,0.00027671,2]
[325338332,1714743046686,-560.3,0.00027671,2]
[325338333,1714743046696,-541.12743932,0.00027671,2]
[325338334,1714743046705,-1932.66,0.00027671,2]
[325338335,1714743046715,-863.26,0.00027671,2]
[325338336,1714743046725,-500.0,0.00027671,2]
[325338337,1714743046734,-500.0,0.00027671,2]
[325338338,1714743046744,-500.0,0.00027671,2]
[325338339,1714743046753,-7416.82,0.00027671,2]
[325338340,1714743046763,-500.0,0.00027671,2]
[325338341,1714743046773,-500.0,0.00027671,2]
[325338342,1714743046783,-500.0,0.00027671,2]
[325338343,1714743046792,-500.0,0.00027671,2]
[325338344,1714743046801,-758.61,0.00027671,2]
[325338345,1714743046811,-500.0,0.00027671,2]
[325338346,1714743046820,-8141.62,0.00027671,2]
[325338348,1714743046829,-500.0,0.00027671,2]
[325338349,1714743046838,-500.0,0.00027671,2]
[325338350,1714743046847,-500.0,0.00027671,2]
[325338351,1714743046856,-529.37,0.00027671,2]
[325338352,1714743046866,-500.0,0.00027671,2]
[325338353,1714743046875,-595.99,0.00027671,2]
[325338355,1714743046884,-517.61,0.00027671,2]
[325338357,1714743046893,-9147.41,0.00027671,2]
[325338359,1714743046903,-500.0,0.00027671,2]
[325338361,1714743046912,-6724.19,0.00027671,2]
[325338363,1714743046926,-1387.51,0.00027671,2]
[325338365,1714743046936,-500.0,0.00027671,2]
[325338367,1714743046946,-500.0,0.00027671,2]
[325338369,1714743046956,-3676.14440891,0.00027671,2]
[325338476,1714743047993,-588.0,0.000273,2]
[325338478,1714743048003,-165.14695299,0.00027387,3]
[325338481,1714743048018,-2983.76275138,0.00027387,3]
[325338483,1714743048030,-2499.92147179,0.00027387,3]
[325338486,1714743048042,-578.64025919,0.00027387,3]
[325338488,1714743048053,-2703.92856465,0.00027387,3]
[325338490,1714743048062,-759.91886192,0.000274,2]
[325338514,1714743048291,-123.92803808,0.000274,2]
[325338526,1714743048394,-569.15392042,0.00027671,2]
[325338528,1714743048410,-460.372,0.00027671,2]
[325338530,1714743048421,-4821.98967067,0.00027671,2]
[325338532,1714743048433,-500.0,0.00027671,2]
[325338534,1714743048442,-638.08,0.00027671,2]
[325338537,1714743048451,-501.70190616,0.00027671,2]
[325338539,1714743048461,-500.0,0.00027671,2]
[325338541,1714743048470,-500.0,0.00027671,2]
[325338542,1714743048480,-500.0,0.00027671,2]
[325338544,1714743048489,-1859.21,0.00027671,2]
[325338547,1714743048500,-500.0,0.00027671,2]
[325338549,1714743048509,-785.67,0.00027671,2]
[325338551,1714743048518,-763.25,0.00027671,2]
[325338553,1714743048527,-500.0,0.00027671,2]
[325338555,1714743048537,-2103.55,0.00027671,2]
[325338557,1714743048546,-525.94,0.00027671,2]
[325338559,1714743048555,-500.0,0.00027671,2]
[325338561,1714743048564,-500.0,0.00027671,2]
[325338563,1714743048574,-416.29796384,0.00027671,2]
[325338565,1714743048587,-313.87203616,0.00027671,2]
[325338567,1714743048596,-86.24563704,0.00027671,2]
[325338582,1714743048729,-413.75436296,0.00027671,2]
[325338584,1714743048739,-500.0,0.00027671,2]
[325338586,1714743048748,-500.0,0.00027671,2]
[325338588,1714743048757,-1262.81,0.00027671,2]
[325338590,1714743048767,-500.0,0.00027671,2]
[325338592,1714743048776,-500.0,0.00027671,2]
[325338594,1714743048785,-553.68,0.00027671,2]
[325338596,1714743048794,-504.74397194,0.00027671,2]
[325338598,1714743048803,-500.0,0.00027671,2]
[325338600,1714743048812,-500.0,0.00027671,2]
[325338602,1714743048821,-807.93,0.00027671,2]
[325338604,1714743048831,-500.0,0.00027671,2]
[325338605,1714743048840,-500.0,0.00027671,2]
[325338606,1714743048849,-915.3,0.00027671,2]
[325338607,1714743048859,-500.0,0.00027671,2]
[325338608,1714743048867,-500.0,0.00027671,2]
[325338609,1714743048876,-500.0,0.00027671,2]
[325338610,1714743048885,-500.0,0.00027671,2]
[325338611,1714743048895,-511.1,0.00027671,2]
[325338612,1714743048904,-500.0,0.00027671,2]
[325338613,1714743048913,-3035.18,0.00027671,2]
[325338614,1714743048924,-500.0,0.00027671,2]
[325338615,1714743048934,-500.0,0.00027671,2]
[325338616,1714743048943,-919.65,0.00027671,2]
[325338617,1714743048952,-500.0,0.00027671,2]
[325338618,1714743048961,-500.0,0.00027671,2]
[325338619,1714743048970,-500.0,0.00027671,2]
[325338620,1714743048979,-500.0,0.00027671,2]
[325338621,1714743048988,-582.16,0.00027671,2]
[325338622,1714743048997,-671.29,0.00027671,2]
[325338623,1714743049007,-500.0,0.00027671,2]
[325338624,1714743049016,-8086.79,0.00027671,2]
[325338625,1714743049026,-500.0,0.00027671,2]
[325338626,1714743049035,-10654.1,0.00027671,2]
[325338627,1714743049044,-298.33986049,0.00027671,2]
[325338628,1714743049053,-500.0,0.00027671,2]
[325338629,1714743049062,-500.0,0.00027671,2]
[325338630,1714743049071,-500.0,0.00027671,2]
[325338631,1714743049080,-500.0,0.00027671,2]
[325338632,1714743049090,-500.0,0.00027671,2]
[325338633,1714743049099,-500.0,0.00027671,2]
[325338634,1714743049108,-1956.76,0.00027671,2]
[325338636,1714743049117,-613.43,0.00027671,2]
[325338638,1714743049127,-1839.9,0.00027671,2]
[325338640,1714743049136,-500.0,0.00027671,2]
[325338642,1714743049146,-588.28,0.00027671,2]
[325338644,1714743049155,-1579.2,0.00027671,2]
[325338646,1714743049164,-500.0,0.00027671,2]
[325338648,1714743049175,-539.89,0.00027671,2]
[325338650,1714743049184,-500.0,0.00027671,2]
[325338652,1714743049193,-500.0,0.00027671,2]
[325338654,1714743049203,-500.0,0.00027671,2]
[325338656,1714743049219,-500.0,0.00027671,2]
[325338658,1714743049228,-675.49,0.00027671,2]
[325338660,1714743049237,-500.0,0.00027671,2]
[325338662,1714743049248,-500.0,0.00027671,2]
[325338664,1714743049260,-567.8,0.00027671,2]
[325338666,1714743049269,-500.0,0.00027671,30]
[325338668,1714743049279,-782.89,0.00027671,2]
[325338670,1714743049288,-3334.83,0.00027671,2]
[325338673,1714743049298,-549.69,0.00027671,2]
[325338674,1714743049307,-500.0,0.00027671,2]
[325338676,1714743049316,-500.0,0.00027671,2]
[325338678,1714743049326,-500.0,0.00027671,2]
[325338680,1714743049335,-487.28272174,0.00027671,2]
[325338682,1714743049345,-500.0,0.00027671,2]
[325338684,1714743049355,-501.62722164,0.00027671,2]
[325338685,1714743049364,-500.0,0.00027671,2]
[325338687,1714743049374,-564.52132225,0.00027671,2]
[325338689,1714743049383,-500.0,0.00027671,2]
[325338691,1714743049392,-500.0,0.00027671,2]
[325338693,1714743049402,-1389.48,0.00027671,2]
[325338695,1714743049411,-500.0,0.00027671,2]
[325338697,1714743049421,-500.0,0.00027671,2]
[325338699,1714743049433,-500.0,0.00027671,2]
[325338700,1714743049442,-2513.14,0.00027671,2]
[325338702,1714743049452,-1913.35,0.00027671,2]
[325338704,1714743049462,-1038.09,0.00027671,2]
[325338705,1714743049471,-624.09,0.00027671,2]
[325338706,1714743049481,-500.0,0.00027671,2]
[325338707,1714743049490,-500.0,0.00027671,2]
[325338708,1714743049502,-500.0,0.00027671,2]
[325338709,1714743049511,-1531.54,0.00027671,2]
[325338710,1714743049520,-500.0,0.00027671,2]
[325338711,1714743049530,-406.13976098,0.00027671,2]
[325338712,1714743049539,-601.5299,0.00027747,2]
[325338713,1714743049561,-160.0,0.00027845,2]
[325338714,1714743049571,-601.5299,0.0002785,2]
[325338715,1714743049581,-150.69860279,0.00027857,2]
[325338716,1714743049591,-153.0,0.00027858,2]
[325338717,1714743049601,-153.0,0.00027858,2]
[325338719,1714743049610,-153.0,0.00027858,2]
[325338721,1714743049620,-153.0,0.00027858,2]
[325338723,1714743049629,-306.0,0.00027858,2]
[325338725,1714743049639,-269.9342733,0.00027875,2]
[325338727,1714743049648,-153.0,0.00027875,2]
[325338729,1714743049658,-10000.0,0.00027888,7]
[325338731,1714743049668,-160.0,0.00027944,10]
[325338733,1714743049679,-500.0,0.00027945,2]
[325338735,1714743049689,-500.0,0.00027945,2]
[325338738,1714743049700,-500.0,0.00027945,2]
[325338740,1714743049709,-500.0,0.00027945,2]
[325338756,1714743049847,-500.0,0.00027945,2]
[325338758,1714743049858,-500.0,0.00027945,2]
[325338760,1714743049867,-504.77492183,0.00027945,2]
[325338761,1714743049876,-500.0,0.00027945,2]
[325338763,1714743049886,-507.71,0.00027945,2]
[325338765,1714743049895,-500.0,0.00027945,2]
[325338767,1714743049904,-595.55,0.00027945,2]
[325338769,1714743049913,-500.0,0.00027945,2]
[325338771,1714743049925,-500.0,0.00027945,2]
[325338772,1714743049934,-1000.0,0.00027945,2]
[325338773,1714743049944,-500.0,0.00027945,2]
[325338774,1714743049953,-500.0,0.00027945,2]
[325338775,1714743049962,-500.0,0.00027945,2]
[325338776,1714743049972,-521.33,0.00027945,2]
[325338777,1714743049981,-500.0,0.00027945,2]
[325338778,1714743049991,-500.0,0.00027945,2]
[325338779,1714743050000,-500.0,0.00027945,2]
[325338780,1714743050010,-500.0,0.00027945,2]
[325338781,1714743050020,-500.0,0.00027945,2]
[325338782,1714743050029,-500.0,0.00027945,2]
[325338783,1714743050039,-500.0,0.00027945,2]
[325338784,1714743050049,-500.0,0.00027945,2]
[325338785,1714743050059,-501.32499044,0.00027945,2]
[325338786,1714743050068,-500.0,0.00027945,2]
[325338787,1714743050078,-502.98,0.00027945,2]
[325338788,1714743050087,-500.0,0.00027945,2]
[325338789,1714743050097,-500.0,0.00027945,2]
[325338790,1714743050106,-500.0,0.00027945,2]
[325338791,1714743050116,-500.0,0.00027945,2]
[325338792,1714743050126,-597.46,0.00027945,2]
[325338793,1714743050136,-500.0,0.00027945,2]
[325338794,1714743050147,-500.0,0.00027945,2]
[325338795,1714743050156,-500.0,0.00027945,2]
[325338796,1714743050166,-500.0,0.00027945,2]
[325338797,1714743050178,-500.0,0.00027945,2]
[325338798,1714743050187,-866.06,0.00027945,2]
[325338799,1714743050197,-500.0,0.00027945,2]
[325338800,1714743050209,-500.0,0.00027945,2]
[325338801,1714743050223,-452.22568216,0.00027945,2]
[325338802,1714743050232,-500.0,0.00027945,2]
[325338803,1714743050242,-500.0,0.00027945,2]
[325338804,1714743050252,-865.72,0.00027945,2]
[325338805,1714743050267,-500.0,0.00027945,2]
[325338806,1714743050277,-500.0,0.00027945,2]
[325338807,1714743050287,-502.66707041,0.00027945,2]
[325338808,1714743050298,-228.85857284,0.00027945,2]
[325338809,1714743050309,-500.0,0.00027945,2]
[325338810,1714743050318,-500.0,0.00027945,2]
[325338811,1714743050328,-500.0,0.00027945,2]
[325338812,1714743050338,-500.0,0.00027945,2]
[325338813,1714743050348,-500.0,0.00027945,2]
[325338814,1714743050358,-563.71,0.00027945,2]
[325338815,1714743050368,-500.0,0.00027945,2]
[325338817,1714743050378,-500.0,0.00027945,2]
[325338818,1714743050388,-500.0,0.00027945,2]
[325338819,1714743050398,-500.0,0.00027945,2]
[325338820,1714743050409,-500.0,0.00027945,2]
[325338821,1714743050419,-598.69504784,0.00027945,2]
[325338822,1714743050431,-500.0,0.00027945,2]
[325338823,1714743050441,-500.0,0.00027945,2]
[325338824,1714743050451,-500.0,0.00027945,2]
[325338825,1714743050461,-500.0,0.00027945,2]
[325338826,1714743050470,-500.0,0.00027945,2]
[325338827,1714743050480,-500.0,0.00027945,2]
[325338828,1714743050490,-500.0,0.00027945,2]
[325338829,1714743050500,-500.0,0.00027945,2]
[325338830,1714743050511,-500.0,0.00027945,2]
[325338831,1714743050520,-500.0,0.00027945,2]
[325338832,1714743050530,-500.0,0.00027945,2]
[325338833,1714743050539,-500.0,0.00027945,2]
[325338834,1714743050550,-500.0,0.00027945,2]
[325338835,1714743050561,-500.0,0.00027945,2]
[325338836,1714743050572,-500.0,0.00027945,2]
[325338837,1714743050582,-500.0,0.00027945,2]
[325338838,1714743050592,-500.0,0.00027945,2]
[325338839,1714743050602,-500.0,0.00027945,2]
[325338840,1714743050612,-601.32,0.00027945,2]
[325338841,1714743050622,-500.0,0.00027945,2]
[325338842,1714743050632,-500.0,0.00027945,2]
[325338843,1714743050641,-565.91,0.00027945,2]
[325338844,1714743050651,-500.0,0.00027945,2]
[325338845,1714743050660,-500.0,0.00027945,2]
[325338846,1714743050670,-665.78,0.00027945,2]
[325338847,1714743050683,-571.83,0.00027945,2]
[325338848,1714743050693,-398.64794805,0.00027945,2]
[325338849,1714743050703,-602.48,0.00027945,2]
[325338850,1714743050713,-500.0,0.00027945,2]
[325338851,1714743050722,-605.28,0.00027945,2]
[325338852,1714743050732,-2164.89,0.00027945,2]
[325338853,1714743050742,-3493.12,0.00027945,2]
[325338854,1714743050751,-638.58567564,0.00027945,2]
[325338855,1714743050761,-288.25421338,0.00027945,2]
[325338856,1714743050771,-500.0,0.00027945,2]
[325338857,1714743050781,-500.0,0.00027945,2]
[325338858,1714743050791,-500.0,0.00027945,2]
[325338859,1714743050801,-569.12,0.00027945,2]
[325338860,1714743050812,-2278.27,0.00027945,2]
[325338861,1714743050822,-500.0,0.00027945,2]
[325338862,1714743050831,-500.0,0.00027945,2]
[325338863,1714743050842,-602.17,0.00027945,2]
[325338864,1714743050851,-439.13162946,0.00027945,2]
[325338865,1714743050861,-500.0,0.00027945,2]
[325338866,1714743050871,-500.0,0.00027945,2]
[325338867,1714743050881,-500.0,0.00027945,2]
[325338868,1714743050890,-500.0,0.00027945,2]
[325338869,1714743050900,-1144.53,0.00027945,2]
[325338870,1714743050910,-1085.02,0.00027945,2]
[325338871,1714743050920,-500.0,0.00027945,2]
[325338872,1714743050936,-500.0,0.00027945,2]
[325338873,1714743050946,-500.0,0.00027945,2]
[325338874,1714743050955,-500.0,0.00027945,2]
[325338875,1714743050964,-500.0,0.00027945,2]
[325338876,1714743050973,-285.46475802,0.00027945,2]
[325338877,1714743050982,-300.0,0.00027945,2]
[325338878,1714743050991,-500.0,0.00027945,2]
[325338879,1714743051000,-620.16,0.00027945,2]
[325338880,1714743051009,-500.0,0.00027945,2]
[325338881,1714743051019,-509.24,0.00027945,2]
[325338882,1714743051029,-500.0,0.00027945,2]
[325338883,1714743051038,-727.55,0.00027945,2]
[325338884,1714743051047,-500.0,0.00027945,2]
[325338885,1714743051057,-590.83,0.00027945,2]